bitfinex/quotes_ETHUSD_20220117
["timestamp","ask_amount","ask_price","bid_price","bid_amount"]
[1642441140945,0.3,3212.0,3211.7,0.00284212]
[1642441141554,1.07845,3212.0,3211.7,0.00284212]
[1642441141747,1.29407044,3211.8,3211.7,0.00284212]
[1642441142150,1.59407044,3211.8,3211.7,0.00284212]
[1642441143447,6.84407044,3211.8,3211.7,0.00284212]
[1642441143701,1.59407044,3211.8,3211.7,0.00284212]
[1642441146404,5.94407044,3211.8,3211.7,0.00284212]
[1642441147454,1.59407044,3211.8,3211.7,0.00284212]
[1642441149460,1.59407044,3211.8,3210.3,13.5630468]
[1642441149461,5.05,3211.7,3210.3,13.5630468]
[1642441149658,0.77872,3211.5,3210.3,3.9956468]
[1642441149855,4.44129538,3211.4,3210.4,0.0073895]
[1642441150057,0.3,3211.1,3210.4,0.0073895]
[1642441150358,1.09602404,3210.5,3210.4,0.0073895]
[1642441150957,1.09602404,3210.5,3210.1,0.00909477]
[1642441151814,1.39602404,3210.5,3210.1,0.00909477]
[1642441153010,2.28742404,3210.5,3210.1,0.00909477]
[1642441153411,2.27912859,3210.5,3210.1,0.00909477]
[1642441154314,1.38772859,3210.5,3210.1,0.00909477]
[1642441154713,1.38772859,3210.5,3210.2,0.05187127]
[1642441155146,1.38772859,3210.5,3210.3,0.00795793]
[1642441155554,2.6651098,3210.4,3210.1,0.00909477]
[1642441156553,2.6651098,3210.4,3210.2,0.07535772]
[1642441156958,2.6651098,3210.4,3210.3,13.40695793]
[1642441157156,2.6651098,3210.4,3210.3,15.69595643]
[1642441157354,2.6651098,3210.4,3210.3,17.46461613]
[1642441158357,2.6651098,3211.0,3210.3,17.46461613]
[1642441158693,2.6651098,3211.0,3210.4,1.08744209]
[1642441158899,2.6651098,3211.0,3210.5,0.77853]
[1642441159099,2.6651098,3211.0,3210.6,0.0519808]
[1642441159300,2.6651098,3211.0,3210.7,0.449]
[1642441159504,2.6651098,3211.0,3210.8,3.31283687]
[1642441159699,2.6651098,3211.0,3210.9,23.82341704]
[1642441159900,2.6651098,3211.0,3210.9,25.05532443]
[1642441160099,3.91054246,3211.6,3211.0,0.05008462]
[1642441160300,3.91054246,3211.6,3211.1,0.449]
[1642441160502,3.14642,3212.8,3211.2,3.92531278]
[1642441160503,3.91054246,3211.7,3211.2,3.92531278]
[1642441160702,3.91054246,3211.7,3211.3,1.0]
[1642441160901,3.91054246,3211.7,3211.5,0.77822]
[1642441161103,3.91054246,3211.7,3211.6,3.03757331]
[1642441161408,1.58502187,3212.0,3211.6,3.03757331]
[1642441161601,1.58502187,3212.0,3211.6,3.33757331]
[1642441161602,0.3,3212.0,3211.6,3.33757331]
[1642441161802,0.00113685,3211.9,3211.6,3.33757331]
[1642441162455,0.00113685,3211.9,3211.5,1.749]
[1642441162745,0.00113685,3211.9,3211.5,0.749]
[1642441162949,2.66482201,3211.9,3211.5,0.749]
[1642441163349,2.96482201,3211.9,3211.5,0.749]
[1642441164350,0.30113685,3211.9,3211.5,0.749]
[1642441164554,0.00113685,3211.9,3211.5,0.749]
[1642441164951,2.66368516,3211.8,3211.5,0.749]
[1642441165554,2.66368516,3211.8,3211.5,1.749]
[1642441166054,0.00113685,3211.9,3211.5,2.5272841]
[1642441166299,0.00113685,3211.9,3211.6,0.3]
[1642441166500,0.00113685,3211.9,3211.6,1.07823]
[1642441166900,0.00113685,3211.9,3211.6,0.3]
[1642441167403,0.00113685,3211.9,3211.5,3.3054595]
[1642441167600,0.00113685,3211.9,3211.5,2.3054595]
[1642441167803,0.00113685,3211.9,3211.6,1.0]
[1642441168004,0.00113685,3211.9,3211.6,0.3]
[1642441168204,0.00113685,3211.9,3211.6,1.0]
[1642441168605,0.00113685,3211.9,3211.5,2.3054595]
[1642441169949,0.00113685,3211.9,3211.5,0.449]
[1642441170150,0.00113685,3211.9,3211.5,3.549]
[1642441170952,1.37317155,3211.8,3211.5,3.549]
[1642441171151,1.67317155,3211.8,3211.5,3.549]
[1642441172154,2.66368516,3211.7,3211.5,3.1]
[1642441172753,18.95,3211.6,3211.4,5.27e-06]
[1642441172953,18.11,3211.5,3210.0,1.068314]
[1642441173153,1.39812514,3210.8,3210.5,0.00512108]
[1642441173353,1.36847195,3210.7,3210.5,0.00512108]
[1642441174204,1.36847195,3210.7,3210.1,0.0073895]
[1642441174402,2.14737195,3210.7,3210.1,0.0073895]
[1642441174603,0.7789,3210.3,3210.1,0.0073895]
[1642441175705,1.98492249,3210.3,3210.1,0.0073895]
[1642441175906,0.3,3210.2,3210.1,0.0073895]
[1642441177562,0.77877,3210.6,3210.1,0.0073895]
[1642441177958,1.07877,3210.6,3210.1,0.0073895]
[1642441178359,2.66491224,3210.5,3210.1,0.0073895]
[1642441179964,2.66491224,3210.5,3210.1,3.1073895]
[1642441180267,2.66491224,3210.5,3210.2,0.00682108]
[1642441180663,2.61491224,3210.5,3210.2,0.00682108]
[1642441181498,2.61491224,3210.5,3210.1,0.0073895]
[1642441181998,1.07877,3210.6,3210.1,0.0073895]
[1642441182206,1.07877,3210.6,3210.2,0.0509709]
[1642441182605,1.07877,3210.6,3210.3,0.00625266]
[1642441183104,19.18877,3210.6,3210.1,0.0073895]
[1642441183804,1.42896104,3210.5,3210.1,0.0073895]
[1642441184003,19.53896104,3210.5,3210.1,0.0073895]
[1642441186549,21.09688104,3210.5,3210.1,0.0073895]
[1642441187155,23.43398104,3210.5,3210.1,0.0073895]
[1642441187354,0.3,3210.3,3210.1,0.0073895]
[1642441187754,19.18904,3210.3,3210.1,0.0073895]
[1642441188060,18.15,3210.2,3210.1,0.0073895]
[1642441189514,18.46287069,3210.2,3210.1,0.0073895]
[1642441190011,12.2,3210.1,3210.0,0.001]
[1642441190212,12.97912,3210.1,3210.0,0.001]
[1642441190413,16.0108374,3210.1,3210.0,0.001]
[1642441190813,25.7708374,3210.1,3210.0,0.001]
[1642441191011,27.0708374,3210.1,3210.0,0.001]
[1642441191212,25.7708374,3210.1,3210.0,0.001]
[1642441191414,26.7708374,3210.1,3210.0,0.001]
[1642441192214,25.7708374,3210.1,3210.0,0.001]
[1642441192452,26.7708374,3210.1,3210.0,0.001]
[1642441192646,30.76901369,3210.1,3210.0,0.001]
[1642441192847,12.65901369,3210.1,3210.0,0.001]
[1642441193648,8.6608374,3210.1,3210.0,0.001]
[1642441193851,13.8608374,3210.1,3210.0,0.001]
[1642441194452,31.9708374,3210.1,3210.0,0.001]
[1642441194851,26.7708374,3210.1,3210.0,0.001]
[1642441195252,25.9917174,3210.1,3210.0,0.001]
[1642441195453,28.68989369,3210.1,3210.0,0.001]
[1642441196705,28.98989369,3210.1,3210.0,0.001]
[1642441197405,29.98989369,3210.1,3210.0,0.001]
[1642441199606,28.98989369,3210.1,3210.0,0.001]
[1642441200056,29.98989369,3210.1,3210.0,0.001]
[1642441200447,30.28989369,3210.1,3210.0,0.001]
[1642441201451,32.95546177,3210.1,3210.0,0.001]
[1642441201852,14.84546177,3210.1,3210.0,0.001]
[1642441202052,8.39546177,3210.1,3210.0,0.001]
[1642441202252,8.09546177,3210.1,3210.0,0.001]
[1642441203354,6.66374437,3210.1,3210.0,0.001]
[1642441203556,2.66556808,3210.1,3210.0,0.001]
[1642441203805,2.66556808,3210.1,3210.0,17.051]
[1642441204008,1.58502187,3210.6,3210.1,17.7]
[1642441204210,1.58502187,3210.6,3210.3,1.22727245]
[1642441204408,0.00229556,3210.6,3210.4,16.849]
[1642441204606,0.00229556,3210.6,3210.5,16.25]
[1642441204804,2.36272353,3210.8,3210.6,8.4]
[1642441205004,2.36272353,3210.8,3210.7,6.4541516]
[1642441205207,3.99817629,3210.9,3210.8,17.2]
[1642441205408,3.99817629,3210.9,3210.8,17.649]
[1642441205605,3.99817629,3210.9,3210.8,18.949]
[1642441205606,4.00044998,3210.9,3210.8,18.949]
[1642441205804,4.85495098,3211.5,3210.9,16.2]
[1642441206007,4.85495098,3211.5,3210.9,16.2507315]
[1642441206210,3.9219077,3211.6,3211.0,1.0]
[1642441206211,0.00284212,3211.4,3211.0,1.0]
[1642441206506,0.0022737,3211.3,3211.1,1.42494303]
[1642441207007,3.11369941,3211.7,3211.3,0.84680242]
[1642441207207,7.91920685,3212.2,3211.4,20.499]
[1642441207465,7.91920685,3212.2,3211.5,19.30725017]
[1642441207654,0.00284212,3212.1,3212.0,6.82960291]
[1642441207854,0.00284212,3212.1,3212.0,7.12960291]
[1642441208055,0.00284212,3212.1,3212.0,2.52716]
[1642441208254,0.00284212,3212.1,3212.0,1.749]
[1642441208558,0.00284212,3212.1,3212.0,0.749]
[1642441208763,0.00284212,3212.1,3212.0,8.599]
[1642441208959,0.00284212,3212.1,3212.0,1.749]
[1642441209159,0.00284212,3212.1,3212.0,0.449]
[1642441209362,0.00284212,3212.1,3211.6,0.449]
[1642441209561,0.00284212,3212.1,3211.2,0.449]
[1642441209761,1.45073519,3212.3,3210.8,4.322]
[1642441209762,0.00227369,3212.0,3210.8,4.322]
[1642441209962,0.78077369,3212.0,3211.3,0.00170527]
[1642441210164,1.2619062,3211.8,3211.3,0.00170527]
[1642441210363,2.57874735,3211.8,3211.3,0.00170527]
[1642441210564,2.87874735,3211.8,3210.8,0.00454739]
[1642441210765,0.77869,3211.6,3210.8,0.00454739]
[1642441211067,0.3,3211.5,3210.8,0.00454739]
[1642441211504,0.3,3211.3,3210.1,0.00852635]
[1642441211905,0.3,3211.3,3210.8,1.7]
[1642441212303,0.3,3211.3,3210.9,0.00397897]
[1642441212906,1.31465199,3211.0,3210.9,0.00397897]
[1642441213708,10.46465199,3211.0,3210.9,0.00397897]
[1642441214309,11.8,3210.9,3210.2,1.59912699]
[1642441214511,0.77893,3210.8,3210.2,1.59912699]
[1642441214710,1.74573,3210.8,3210.3,0.00341054]
[1642441215002,5.67817832,3210.8,3210.3,0.00341054]
[1642441215211,6.12717832,3210.8,3210.3,0.00341054]
[1642441215389,20.66804,3210.7,3210.3,0.00341054]
[1642441215587,2.55804,3210.7,3210.1,0.00454738]
[1642441216194,0.3,3210.6,3210.1,0.00454738]
[1642441216394,2.15136653,3210.5,3210.1,0.00454738]
[1642441218803,2.45136653,3210.5,3210.1,0.00454738]
[1642441220204,2.20136653,3210.5,3210.1,0.00454738]
[1642441220603,2.98023653,3210.5,3210.1,0.00454738]
[1642441222003,2.98023653,3210.5,3210.1,1.70454738]
[1642441222478,2.98023653,3210.5,3210.2,0.00397896]
[1642441222774,18.11,3210.4,3210.1,0.00454738]
[1642441223979,4.98731063,3210.5,3210.1,0.00454738]
[1642441224179,4.20824653,3210.5,3210.1,0.00454738]
[1642441224579,1.0,3210.4,3210.1,0.00454738]
[1642441224780,4.00109683,3210.3,3210.1,0.00454738]
[1642441225382,15.47908,3210.2,3210.1,0.00454738]
[1642441225784,18.22213683,3210.2,3210.1,0.00454738]
[1642441225981,18.22213683,3210.2,3209.0,1.59912699]
[1642441225982,11.3,3210.1,3209.0,1.59912699]
[1642441226225,0.77921,3209.7,3209.0,1.59912699]
[1642441226422,2.61786073,3209.6,3209.1,0.00568424]
[1642441227424,0.77918,3209.5,3209.1,0.00568424]
[1642441227726,0.77919,3209.4,3209.1,0.00568424]
[1642441228731,2.44305683,3209.4,3209.2,0.13498548]
[1642441229131,2.44305683,3209.4,3209.3,0.00454739]
[1642441231559,2.44305683,3209.5,3209.3,0.13953287]
[1642441232061,2.44305683,3209.5,3209.4,0.00397897]
[1642441232265,2.61786073,3209.6,3209.4,0.00397897]
[1642441233266,2.52972244,3209.5,3209.4,0.00397897]
[1642441233707,2.52972244,3209.5,3209.2,0.00511581]
[1642441235606,2.52972244,3209.5,3209.3,0.07386638]
[1642441235807,2.52972244,3209.5,3209.2,0.00511581]
[1642441236009,2.52972244,3209.5,3209.4,7.70397897]
[1642441236407,2.80628968,3210.1,3209.5,0.07833881]
[1642441236608,1.56036975,3210.4,3209.5,0.07833881]
[1642441236808,1.56036975,3210.4,3209.6,0.00284212]
[1642441237007,1.2206666,3210.0,3209.6,0.00284212]
[1642441237457,1.2206666,3210.0,3209.4,16.4]
[1642441237458,1.26673316,3209.8,3209.5,0.00341054]
[1642441237856,1.26673316,3209.8,3209.6,1.59912699]
[1642441238255,1.26673316,3209.8,3209.7,0.0022737]
[1642441239160,1.56673316,3209.8,3209.7,0.0022737]
[1642441240460,8.01673316,3209.8,3209.7,0.0022737]
[1642441241507,26.12673316,3209.8,3209.7,0.0022737]
[1642441241709,28.61901557,3209.8,3209.7,0.0022737]
[1642441242107,28.61901557,3209.8,3209.3,0.00454739]
[1642441242307,2.33747,3209.7,3209.3,0.00454739]
[1642441243509,20.44747,3209.7,3209.3,0.00454739]
[1642441243710,2.49228241,3209.6,3209.3,0.00454739]
[1642441243914,20.60228241,3209.6,3209.3,0.00454739]
[1642441244213,0.77915,3209.5,3209.0,0.00625266]
[1642441245067,0.77915,3209.5,3208.8,1.59912699]
[1642441245068,1.4655101,3209.3,3208.9,0.00682108]
[1642441245467,2.2446801,3209.3,3208.9,0.00682108]
[1642441245871,2.2446801,3209.3,3208.8,0.00738951]
[1642441246273,2.49228241,3209.2,3208.8,0.00738951]
[1642441247276,2.49228241,3209.2,3208.9,0.0783821]
[1642441247474,2.49228241,3209.2,3208.8,0.00738951]
[1642441247675,2.49228241,3209.2,3209.0,0.00625266]
[1642441247878,2.49228241,3209.2,3208.8,0.00738951]
[1642441248477,3.27155241,3209.2,3208.8,0.00738951]
[1642441248723,20.81596896,3209.1,3208.7,0.00795793]
[1642441249112,19.11,3209.0,3208.7,0.00795793]
[1642441249312,19.11,3209.0,3208.9,0.13332094]
[1642441249512,19.41,3209.0,3208.9,0.13332094]
[1642441249712,19.41,3209.0,3208.9,0.14014202]
[1642441250116,18.11,3209.0,3208.9,0.14014202]
[1642441250313,2.70596896,3209.1,3208.9,0.14014202]
[1642441250518,1.14730896,3209.1,3208.9,0.14014202]
[1642441250711,1.14730896,3209.1,3209.0,0.00625266]
[1642441251116,2.49228241,3209.2,3209.0,0.00625266]
[1642441251315,3.02587985,3209.3,3209.0,0.00625266]
[1642441251516,3.02587985,3209.3,3208.9,0.00682108]
[1642441252114,1.17263416,3209.2,3208.9,0.00682108]
[1642441252558,1.17263416,3209.2,3209.0,0.13332094]
[1642441253761,2.79126975,3209.8,3209.1,0.06769718]
[1642441253969,1.56036975,3209.8,3209.0,0.13332094]
[1642441254159,1.56036975,3209.8,3209.2,0.00511581]
[1642441254359,1.56036975,3209.8,3209.3,0.05330401]
[1642441254560,1.56036975,3209.8,3209.2,0.00511581]
[1642441254760,1.56036975,3209.8,3209.4,0.00397897]
[1642441254961,1.11391047,3209.7,3209.4,0.00397897]
[1642441255360,1.56036975,3210.0,3209.3,0.00454739]
[1642441255561,1.56036975,3210.0,3209.3,0.70549629]
[1642441255764,1.56036975,3210.0,3209.4,3.0141549]
[1642441255961,1.56036975,3210.0,3209.4,3.01813387]
[1642441256217,1.31226692,3210.2,3209.5,1.45241054]
[1642441256412,1.31226692,3210.2,3209.6,3.20078468]
[1642441256613,1.31226692,3210.2,3209.6,3.2036268]
[1642441256813,1.38923362,3210.3,3209.8,0.04881266]
[1642441257113,1.38923362,3210.3,3209.9,0.00113685]
[1642441257714,1.38923362,3210.3,3209.8,0.00170527]
[1642441257912,1.38923362,3210.3,3209.7,1.0022737]
[1642441258113,1.38923362,3210.3,3209.8,2.96198493]
[1642441258513,3.04883299,3210.3,3209.9,0.00113685]
[1642441260263,3.04883299,3210.3,3209.9,0.30113685]
[1642441260563,3.04883299,3210.3,3209.8,2.95512683]
[1642441260763,3.04883299,3210.3,3209.8,3.25512683]
[1642441260968,3.04883299,3210.3,3209.9,0.00113685]
[1642441261563,1.38923362,3210.3,3209.9,0.00113685]
[1642441261763,1.68923362,3210.3,3209.9,0.00113685]
[1642441261963,1.38923362,3210.3,3209.9,0.00113685]
[1642441262163,0.00113684,3210.3,3210.0,0.04717413]
[1642441262564,0.00113684,3210.3,3210.0,3.36997302]
[1642441263065,0.00113684,3210.3,3210.1,1.0]
[1642441263266,0.00113684,3210.3,3210.2,4.6]
[1642441263471,0.00113684,3210.3,3210.2,7.55393771]
[1642441263714,0.00113684,3210.3,3210.0,3.83108682]
[1642441263912,0.00113684,3210.3,3209.9,2.04926384]
[1642441264311,0.00113684,3210.3,3209.9,1.60026384]
[1642441264512,0.00113684,3210.3,3210.0,1.59912699]
[1642441265511,0.00113684,3210.3,3209.9,0.00113685]
[1642441265911,0.00113684,3210.3,3209.8,0.00170527]
[1642441266313,1.27533,3209.9,3209.8,0.00170527]
[1642441266513,1.17228328,3209.9,3209.8,0.00170527]
[1642441266712,0.3,3210.2,3209.8,0.00170527]
[1642441266913,2.60122396,3210.5,3209.8,0.00170527]
[1642441266914,1.56036975,3210.4,3209.8,0.00170527]
[1642441267113,0.3,3210.3,3209.8,0.00170527]
[1642441267313,0.3,3210.3,3209.4,0.00397897]
[1642441267960,1.46061915,3210.0,3209.4,0.00397897]
[1642441268161,1.46061915,3210.0,3209.6,1.59912699]
[1642441268360,2.90122396,3210.3,3209.6,1.59912699]
[1642441268561,2.90122396,3210.3,3209.7,0.0022737]
[1642441269963,1.21754967,3209.8,3209.7,0.0022737]
[1642441270464,2.60122396,3209.9,3209.7,0.0022737]
[1642441270663,2.60122396,3209.8,3209.7,0.3022737]
[1642441270863,2.60122396,3209.8,3209.7,0.0022737]
[1642441271318,2.60122396,3209.8,3209.6,0.00284212]
[1642441271510,2.90122396,3209.8,3209.6,0.00284212]
[1642441272515,2.90122396,3209.8,3209.6,1.60196911]
[1642441272516,0.3,3209.8,3209.6,1.60196911]
[1642441272913,2.42702011,3210.0,3209.7,0.0022737]
[1642441273817,2.42702011,3210.0,3209.3,0.00454739]
[1642441274013,1.5551759,3209.4,3209.3,0.00454739]
[1642441274214,3.06545935,3209.4,3209.3,0.00454739]
[1642441274614,3.36545935,3209.4,3209.3,0.00454739]
[1642441276568,3.36545935,3209.4,3209.0,0.00625266]
[1642441277264,1.81028345,3209.4,3209.0,0.00625266]
[1642441277465,1.81028345,3209.4,3209.1,0.05879158]
[1642441277667,1.81028345,3209.4,3209.0,0.00625266]
[1642441277864,1.81028345,3209.4,3209.2,0.00511581]
[1642441278064,1.81028345,3209.4,3209.0,0.00625266]
[1642441278465,1.32769841,3209.3,3209.0,0.00625266]
[1642441280119,1.32769841,3209.3,3208.8,0.00738951]
[1642441281119,1.35633316,3208.9,3208.8,0.00738951]
[1642441281518,1.65633316,3208.9,3208.8,0.00738951]
[1642441284471,6.1,3208.8,3208.4,2.52314448]
[1642441284669,0.77944,3208.7,3208.4,2.52314448]
[1642441284868,0.77944,3208.7,3208.5,0.00170527]
[1642441286516,0.77944,3208.7,3208.5,0.07672381]
[1642441286716,0.77944,3208.7,3208.5,0.00170527]
[1642441286921,0.77944,3208.7,3208.6,0.00113685]
[1642441287117,3.22805792,3208.9,3208.6,0.00113685]
[1642441287118,1.66918792,3208.9,3208.6,0.00113685]
[1642441287523,1.65633316,3208.9,3208.6,0.00113685]
[1642441287723,2.91858223,3209.0,3208.6,0.00113685]
[1642441287724,3.21858223,3209.0,3208.6,0.00113685]
[1642441288523,0.3,3209.0,3208.6,0.00113685]
[1642441288728,0.77913,3209.4,3208.8,0.06620583]
[1642441288929,7.64428463,3209.7,3208.8,0.06620583]
[1642441288930,6.08605463,3209.7,3208.8,3.72734916]
[1642441289125,0.00284212,3209.3,3208.9,1.449]
[1642441289324,0.00454739,3209.6,3209.0,3.58966401]
[1642441289530,2.34055463,3209.7,3209.1,21.499]
[1642441289531,0.0022737,3209.2,3209.1,21.499]
[1642441289725,0.00397897,3209.5,3209.2,3.08732141]
[1642441289975,2.91858223,3209.7,3209.4,0.7009394]
[1642441290174,2.91858223,3209.7,3209.5,3.16353149]
[1642441290374,0.00454739,3209.6,3209.3,4.47728951]
[1642441290772,0.00397897,3209.5,3209.3,1.449]
[1642441290977,0.00397897,3209.5,3209.3,4.47867495]
[1642441291173,0.00341054,3209.4,3209.3,4.47867495]
[1642441291374,0.00341054,3209.4,3209.3,4.51808836]
[1642441291773,0.00341054,3209.4,3209.3,24.56808836]
[1642441292872,2.34055463,3210.6,3210.5,1.30297239]
[1642441293075,2.34055463,3210.6,3210.5,1.49057687]
[1642441293473,3.25699249,3210.9,3209.9,3.17401446]
[1642441293474,0.13819997,3210.9,3209.9,3.17401446]
[1642441293715,0.13819997,3210.9,3209.8,0.449]
[1642441293918,0.00625266,3210.5,3209.8,0.749]
[1642441294319,0.00568424,3210.4,3209.8,0.749]
[1642441294519,1.11224132,3210.3,3209.8,0.449]
[1642441294725,1.11735713,3210.3,3209.7,2.84896299]
[1642441294921,0.00454739,3210.2,3209.7,2.84896299]
[1642441295320,0.00397897,3210.1,3209.7,2.84896299]
[1642441295720,0.00341054,3210.0,3209.7,1.24975799]
[1642441296122,0.00284212,3209.9,3209.7,1.24975799]
[1642441296622,0.0022737,3209.8,3209.5,4.2968]
[1642441296823,0.0022737,3209.8,3209.6,1.0]
[1642441297021,0.00170527,3209.7,3209.4,3.26245794]
[1642441297225,0.00170527,3209.7,3209.4,0.3]
[1642441297467,0.29340418,3210.1,3209.3,5.33567402]
[1642441297661,0.29340418,3210.1,3209.5,0.00113685]
[1642441297862,0.00170527,3210.0,3209.4,1.54225361]
[1642441298061,0.00170527,3210.0,3209.5,2.97341498]
[1642441298261,0.00113685,3209.9,3209.5,0.00113684]
[1642441298461,1.27849188,3209.8,3209.5,0.00113684]
[1642441298661,0.00113685,3209.9,3209.5,0.00113684]
[1642441300571,0.00113685,3209.9,3209.5,1.00113684]
[1642441300773,0.00113685,3209.9,3209.6,4.00407143]
[1642441300969,0.00113685,3209.9,3209.7,0.449]
[1642441301211,0.00113685,3209.9,3209.7,2.2276]
[1642441301517,0.00113685,3209.9,3209.7,3.6290908]
[1642441301816,0.00113685,3209.9,3209.8,0.3]
[1642441302017,0.00113685,3209.9,3209.7,1.0]
[1642441302214,0.00113685,3209.9,3209.6,1.599205]
[1642441303017,0.00113685,3209.9,3209.7,1.599205]
[1642441304416,0.00113685,3209.9,3209.5,0.00113684]
[1642441304618,0.00113685,3209.9,3209.5,1.30113684]
[1642441305258,0.00113685,3209.9,3209.6,1.599205]
[1642441305462,0.00113685,3209.9,3209.6,2.377905]
[1642441305759,2.66544156,3210.5,3209.8,0.06227011]
[1642441305961,2.66544156,3210.5,3209.9,1.56201915]
[1642441306259,0.00284212,3210.4,3210.0,0.05452264]
[1642441306462,2.34055463,3210.9,3210.2,0.08116681]
[1642441306664,1.55272212,3211.0,3210.4,1.15685063]
[1642441306864,0.00113684,3210.6,3210.5,12.899]
[1642441307064,0.00113684,3210.6,3210.5,14.199]
[1642441307668,0.00113684,3210.6,3210.5,15.47696437]
[1642441307864,0.00113684,3210.6,3210.5,16.25535437]
[1642441308265,0.00113684,3210.6,3210.5,17.85455937]
[1642441308467,0.00113684,3210.6,3210.5,16.876595]
[1642441308468,3.684e-05,3210.6,3210.5,16.876595]
[1642441308709,1.55272212,3211.6,3210.6,20.0]
[1642441308914,2.212e-05,3211.6,3210.8,0.77826]
[1642441309116,2.34055463,3211.9,3211.0,20.0]
[1642441309315,2.34055463,3211.9,3211.1,1.90371981]
[1642441309516,0.00170527,3211.8,3211.3,0.77812]
[1642441309715,0.00170527,3211.8,3211.4,3.03948336]
[1642441309916,0.00113684,3211.7,3211.5,0.77815]
[1642441310117,0.00113684,3211.7,3211.6,14.599]
[1642441310516,0.00113684,3211.7,3211.6,15.899]
[1642441310715,0.00113684,3211.7,3211.6,1.749]
[1642441312468,0.00113684,3211.7,3211.6,13.499]
[1642441313263,2.65580822,3213.2,3212.2,1.46799811]
[1642441313463,2.65580822,3213.2,3211.7,9.3]
[1642441313464,2.6996238,3212.8,3212.0,0.7003797]
[1642441313663,2.6996238,3212.8,3212.2,0.3]
[1642441313664,0.00511581,3212.6,3212.2,0.3]
[1642441314071,0.00454739,3212.5,3212.0,1.0003797]
[1642441314268,0.00454739,3212.5,3212.0,0.3]
[1642441314468,0.00397897,3212.4,3211.9,1.0782]
[1642441314669,0.00397897,3212.4,3211.9,2.2271187]
[1642441314868,0.00341054,3212.3,3212.0,0.7003788]
[1642441315070,0.00341054,3212.3,3212.0,1.7003788]
[1642441315268,0.00284212,3212.2,3212.1,11.55]
[1642441315476,0.00284212,3212.2,3212.1,12.9518]
[1642441315670,3.7891,3213.3,3212.2,11.55]
[1642441316072,0.00568423,3213.2,3213.1,1.35274524]
[1642441316314,0.00568423,3213.2,3213.1,2.41144524]
[1642441316512,0.00625266,3213.3,3213.1,1.3587]
[1642441316916,0.00682108,3213.4,3213.1,1.0587]
[1642441317314,6.85283034,3213.8,3213.1,1.0587]
[1642441317315,0.00625266,3213.3,3213.1,1.0587]
[1642441317512,1.4451976,3213.2,3212.5,1.3]
[1642441317713,2.92782303,3213.2,3212.5,1.3]
[1642441317912,0.00511581,3213.1,3212.5,1.3]
[1642441318312,0.00454739,3213.0,3212.5,1.3]
[1642441318713,0.00397896,3212.9,3212.5,1.3]
[1642441319115,0.00341054,3212.8,3212.5,1.3]
[1642441319518,0.00284212,3212.7,3212.5,1.3]
[1642441319715,1.11892313,3212.7,3212.5,1.3]
[1642441319971,0.00227369,3212.6,3212.5,1.3]
[1642441320167,0.00227369,3212.6,3212.5,0.3]
[1642441320365,0.00227369,3212.6,3212.2,2.0003265]
[1642441320771,0.00170527,3212.5,3212.2,2.0003265]
[1642441320966,0.00170527,3212.5,3212.3,0.77815]
[1642441321170,1.56800948,3212.8,3212.3,0.77815]
[1642441321171,0.00113685,3212.4,3212.3,1.77815]
[1642441321973,0.00113685,3212.4,3212.3,0.77815]
[1642441322172,0.00113685,3212.4,3212.3,1.77815]
[1642441322373,0.00113685,3212.4,3212.3,0.77815]
[1642441322572,0.00113685,3212.4,3212.3,1.77815]
[1642441322773,0.00113685,3212.4,3212.3,0.77815]
[1642441322971,0.00113685,3212.4,3212.3,1.77815]
[1642441323378,0.00113685,3212.4,3212.3,21.77815]
[1642441323811,0.2398772,3214.0,3212.4,14.0]
[1642441324011,7.4712,3214.1,3213.2,0.2554]
[1642441324215,7.4712,3214.1,3213.2,1.4707]
[1642441324216,0.0073895,3213.7,3213.2,1.4707]
[1642441324616,1.09798669,3214.1,3213.2,1.7707]
[1642441324617,0.00682108,3213.6,3213.2,1.7707]
[1642441325019,0.00625265,3213.5,3213.2,1.7707]
[1642441325415,0.00568423,3213.4,3213.2,3.3264]
[1642441325616,0.00568423,3213.4,3213.3,7.0]
[1642441325817,4.77418609,3214.3,3213.3,7.77784]
[1642441325818,3.6717,3214.3,3213.3,7.77784]
[1642441326021,0.12448,3214.6,3213.4,0.05358333]
[1642441326220,0.00909477,3214.0,3213.4,0.05358333]
[1642441326518,0.00909477,3214.0,3213.3,7.3]
[1642441326519,2.29373736,3213.8,3213.6,1.55549]
[1642441326716,2.29373736,3213.8,3213.7,8.649]
[1642441326916,2.29373736,3213.8,3213.7,10.91377331]
[1642441327117,2.29373736,3213.8,3213.7,3.71377331]
[1642441327590,2.29373736,3213.8,3213.7,4.16277331]
[1642441327780,2.29373736,3213.8,3213.7,4.94052331]
[1642441328081,3.05751086,3214.0,3213.7,5.78906191]
[1642441328283,2.29373736,3214.2,3213.7,5.78906191]
[1642441328484,0.00852635,3213.9,3213.8,1.0]
[1642441328692,0.00852635,3213.9,3213.8,1.749]
[1642441328888,0.00852635,3213.9,3213.8,4.75705723]
[1642441329388,0.00852635,3213.9,3213.8,21.2475386]
[1642441329587,2.29373736,3214.3,3213.9,12.5]
[1642441329789,2.29373736,3214.3,3214.0,0.77757]
[1642441329790,2.59373736,3214.3,3214.0,0.77757]
[1642441330088,0.00170527,3214.2,3214.0,2.07757]
[1642441330286,0.00170527,3214.2,3214.1,17.1327099]
[1642441330486,2.29373736,3214.3,3214.2,6.18930032]
[1642441330686,2.29373736,3214.3,3214.2,7.58893632]
[1642441330886,2.29601105,3214.3,3214.2,8.88893632]
[1642441331087,0.00227369,3214.3,3214.2,8.88893632]
[1642441331321,0.00227369,3214.3,3214.2,22.08793632]
[1642441331716,0.00227369,3214.3,3214.2,9.33793632]
[1642441331917,0.00227369,3214.3,3214.2,12.44077295]
[1642441332316,0.00227369,3214.3,3214.2,6.25147263]
[1642441332519,0.00227369,3214.3,3214.2,2.5975386]
[1642441332717,0.00227369,3214.3,3214.2,1.5975386]
[1642441332916,0.00227369,3214.3,3214.2,2.5975386]
[1642441333517,0.00227369,3214.3,3214.2,1.5975386]
[1642441333718,0.00227369,3214.3,3214.2,2.5975386]
[1642441333920,1.59548331,3214.5,3214.2,1.749]
[1642441334117,1.59548331,3214.5,3214.2,0.749]
[1642441334719,1.59548331,3214.5,3213.6,1.55553]
[1642441334720,0.3,3214.4,3213.6,1.55553]
[1642441334959,0.3,3214.4,3213.4,1.0]
[1642441335159,0.3,3214.4,3213.8,0.00284211]
[1642441335363,0.3,3214.4,3213.2,0.73664513]
[1642441335364,0.3,3214.4,3213.5,0.00454739]
[1642441335761,1.30226256,3213.8,3213.3,1.34021411]